lending/lending_fUSD_20240721
["ID","MTS","AMOUNT","RATE_DAILY","PERIOD"]
[332866336,1721598803646,150.0,0.00025,113]
[332866337,1721598804070,150.0,0.00025,113]
[332866338,1721598804537,150.0,0.00025,113]
[332866339,1721598804998,150.0,0.00025,113]
[332866340,1721598812887,150.0,0.00025,114]
[332866341,1721598812937,150.0,0.00025,114]
[332866342,1721598812981,150.0,0.00025,114]
[332866343,1721598813038,150.0,0.00025,114]
[332866344,1721598813084,150.0,0.00025,114]
[332866345,1721598813472,150.0,0.00025,114]
[332866346,1721598813908,150.0,0.00025,114]
[332866347,1721598814358,150.0,0.00025,114]
[332866348,1721598814782,150.0,0.00025,114]
[332866349,1721598815202,150.0,0.00025,114]
[332866350,1721598829780,886.09,8.844e-05,2]
[332866355,1721598868798,150.0,0.00025,115]
[332866356,1721598869674,150.0,0.00025,115]
[332866357,1721598870200,150.0,0.00025,115]
[332866358,1721598870624,150.0,0.00025,115]
[332866359,1721598872494,150.0,0.00025,115]
[332866360,1721598872548,150.0,0.00025,115]
[332866361,1721598872596,150.0,0.00025,115]
[332866362,1721598872650,150.0,0.00025,115]
[332866363,1721598872745,150.0,0.00025,115]
[332866364,1721598873192,150.0,0.00025,115]
[332866365,1721598888661,150.0,0.00025,116]
[332866366,1721598889593,150.0,0.00025,116]
[332866367,1721598889969,150.0,0.00025,116]
[332866368,1721598890430,150.0,0.00025,116]
[332866369,1721598890808,150.0,0.00025,116]
[332866370,1721598891234,150.0,0.00025,116]
[332866371,1721598891644,150.0,0.00025,116]
[332866372,1721598892075,150.0,0.00025,116]
[332866373,1721598892504,150.0,0.00025,116]
[332866374,1721598893570,150.0,0.00025,116]
[332866375,1721598896520,150.0,0.00025,117]
[332866376,1721598897311,150.0,0.00025,117]
[332866377,1721598897786,150.0,0.00025,117]
[332866378,1721598898253,150.0,0.00025,117]
[332866379,1721598898717,150.0,0.00025,117]
[332866380,1721598899152,150.0,0.00025,117]
[332866381,1721598899606,150.0,0.00025,117]
[332866382,1721598900008,150.0,0.00025,117]
[332866383,1721598900449,150.0,0.00025,117]
[332866384,1721598900885,150.0,0.00025,117]
[332866385,1721598904138,150.0,0.00025,118]
[332866386,1721598904974,150.0,0.00025,118]
[332866387,1721598905440,150.0,0.00025,118]
[332866388,1721598907157,150.0,0.00025,118]
[332866389,1721598907266,150.0,0.00025,118]
[332866390,1721598907383,150.0,0.00025,118]
[332866391,1721598907457,150.0,0.00025,118]
[332866392,1721598907603,150.0,0.00025,118]
[332866393,1721598908044,150.0,0.00025,118]
[332866394,1721598908430,150.0,0.00025,118]
[332866395,1721598911832,150.0,0.00025,119]
[332866396,1721598912361,150.0,0.00025,119]
[332866397,1721598912805,150.0,0.00025,119]
[332866398,1721598913232,150.0,0.00025,119]
[332866399,1721598913661,150.0,0.00025,119]
[332866400,1721598914094,150.0,0.00025,119]
[332866401,1721598914529,150.0,0.00025,119]
[332866402,1721598914960,150.0,0.00025,119]
[332866403,1721598915427,150.0,0.00025,119]
[332866404,1721598915893,150.0,0.00025,119]
[332866406,1721598945196,150.47497607,0.00024,60]
[332866407,1721598970179,150.0,0.00024,77]
[332866408,1721598971618,150.0,0.00024,77]
[332866409,1721598972060,150.0,0.00024,77]
[332866410,1721598972510,150.0,0.00024,77]
[332866411,1721598972930,150.0,0.00024,77]
[332866412,1721598973384,150.0,0.00024,77]
[332866413,1721598973815,150.0,0.00024,77]
[332866414,1721598974265,150.0,0.00024,77]
[332866415,1721598974723,150.0,0.00024,77]
[332866416,1721598975178,150.0,0.00024,77]
[332866417,1721598978930,150.0,0.00024,78]
[332866418,1721598979160,150.0,0.00024,78]
[332866419,1721598979578,150.0,0.00024,78]
[332866420,1721598980029,150.0,0.00024,78]
[332866421,1721598980475,150.0,0.00024,78]
[332866422,1721598980862,150.0,0.00024,78]
[332866423,1721598981295,150.0,0.00024,78]
[332866424,1721598981745,150.0,0.00024,78]
[332866425,1721598982213,150.0,0.00024,78]
[332866426,1721598982674,150.0,0.00024,78]
[332866427,1721598985945,150.0,0.00024,79]
[332866428,1721598986376,150.0,0.00024,79]
[332866429,1721598986852,150.0,0.00024,79]
[332866430,1721598987239,150.0,0.00024,79]
[332866431,1721598987689,150.0,0.00024,79]
[332866432,1721598988136,150.0,0.00024,79]
[332866433,1721598988841,150.0,0.00024,79]
[332866434,1721598990629,150.0,0.00024,79]
[332866435,1721598990668,150.0,0.00024,79]
[332866436,1721598990718,150.0,0.00024,79]
[332866437,1721599004894,150.0,0.00024,80]
[332866438,1721599005466,150.0,0.00024,80]
[332866439,1721599005996,150.0,0.00024,80]
[332866440,1721599006411,150.0,0.00024,80]
[332866441,1721599006939,150.0,0.00024,80]
[332866442,1721599007265,150.0,0.00024,80]
[332866443,1721599007695,150.0,0.00024,80]
[332866444,1721599008125,150.0,0.00024,80]
[332866445,1721599008569,150.0,0.00024,80]
[332866446,1721599009021,150.0,0.00024,80]
[332866447,1721599027000,150.0,0.00024,60]
[332866448,1721599027512,150.0,0.00024,60]
[332866449,1721599027980,150.0,0.00024,60]
[332866450,1721599028479,150.0,0.00024,60]
[332866451,1721599028945,150.0,0.00024,60]
[332866452,1721599029400,150.0,0.00024,60]
[332866453,1721599029852,150.0,0.00024,60]
[332866454,1721599030381,150.0,0.00024,60]
[332866455,1721599030878,150.0,0.00024,60]
[332866456,1721599038347,150.0,0.00024,61]
[332866457,1721599038469,150.0,0.00024,61]
[332866458,1721599038650,150.0,0.00024,61]
[332866459,1721599039172,150.0,0.00024,61]
[332866460,1721599039988,150.0,0.00024,61]
[332866461,1721599040115,150.0,0.00024,61]
[332866462,1721599040595,150.0,0.00024,61]
[332866463,1721599041093,150.0,0.00024,61]
[332866464,1721599041616,150.0,0.00024,61]
[332866465,1721599044746,150.0,0.00024,62]
[332866466,1721599045278,150.0,0.00024,62]
[332866467,1721599045731,150.0,0.00024,62]
[332866468,1721599046189,150.0,0.00024,62]
[332866469,1721599046687,150.0,0.00024,62]
[332866470,1721599047133,150.0,0.00024,62]
[332866471,1721599047622,150.0,0.00024,62]
[332866472,1721599049635,150.0,0.00024,62]
[332866473,1721599049732,150.0,0.00024,62]
[332866474,1721599052003,150.0,0.00024,63]
[332866475,1721599052501,150.0,0.00024,63]
[332866476,1721599052969,150.0,0.00024,63]
[332866477,1721599053467,150.0,0.00024,63]
[332866478,1721599053915,150.0,0.00024,63]
[332866479,1721599054613,150.0,0.00024,63]
[332866480,1721599054942,150.0,0.00024,63]
[332866481,1721599055596,150.0,0.00024,63]
[332866482,1721599068182,150.0,0.00024,67]
[332866483,1721599068617,150.0,0.00024,67]
[332866484,1721599069056,150.0,0.00024,67]
[332866485,1721599069495,150.0,0.00024,67]
[332866486,1721599069940,150.0,0.00024,67]
[332866487,1721599070403,150.0,0.00024,67]
[332866488,1721599070841,150.0,0.00024,67]
[332866489,1721599071293,150.0,0.00024,67]
[332866490,1721599074329,150.0,0.00024,68]
[332866491,1721599074796,150.0,0.00024,68]
[332866492,1721599075242,150.0,0.00024,68]
[332866493,1721599075754,150.0,0.00024,68]
[332866494,1721599076215,150.0,0.00024,68]
[332866495,1721599076669,150.0,0.00024,68]
[332866496,1721599077125,150.0,0.00024,68]
[332866497,1721599077578,150.0,0.00024,68]
[332866498,1721599081711,150.0,0.00024,69]
[332866499,1721599082197,150.0,0.00024,69]
[332866500,1721599083032,150.0,0.00024,69]
[332866501,1721599083127,150.0,0.00024,69]
[332866502,1721599084580,150.0,0.00024,69]
[332866503,1721599084631,150.0,0.00024,69]
[332866504,1721599084674,150.0,0.00024,69]
[332866505,1721599085119,150.0,0.00024,69]
[332866506,1721599110363,150.0,0.00024,70]
[332866507,1721599110864,150.0,0.00024,70]
[332866508,1721599111321,150.0,0.00024,70]
[332866509,1721599111797,150.0,0.00024,70]
[332866510,1721599112268,150.0,0.00024,70]
[332866511,1721599112933,150.0,0.00024,70]
[332866512,1721599113241,150.0,0.00024,70]
[332866513,1721599113700,150.0,0.00024,70]
[332866515,1721599116406,150.0,0.00024,71]
[332866516,1721599116622,150.0,0.00024,71]
[332866517,1721599117075,150.0,0.00024,71]
[332866518,1721599117543,150.0,0.00024,71]
[332866519,1721599120069,150.0,0.00024,71]
[332866520,1721599120177,150.0,0.00024,71]
[332866521,1721599120282,150.0,0.00024,71]
[332866522,1721599120385,150.0,0.00024,71]
[332866523,1721599122473,150.0,0.00024,72]
[332866524,1721599122964,150.0,0.00024,72]
[332866525,1721599123445,150.0,0.00024,72]
[332866526,1721599123932,150.0,0.00024,72]
[332866527,1721599124791,150.0,0.00024,72]
[332866528,1721599124914,150.0,0.00024,72]
[332866529,1721599125399,150.0,0.00024,72]
[332866530,1721599125981,150.0,0.00024,72]
[332866531,1721599144573,150.0,0.00024,83]
[332866532,1721599147042,150.0,0.00024,84]
[332866533,1721599149851,150.0,0.00024,85]
[332866534,1721599153004,150.0,0.00024,86]
[332866535,1721599191063,500.0,0.00025,110]
[332866540,1721599313683,150.0,0.00024,63]
[332866541,1721599315342,150.0,0.00024,63]
[332866542,1721599315963,150.0,0.00024,63]
[332866543,1721599320560,150.0,0.00024,64]
[332866544,1721599320602,150.0,0.00024,64]
[332866545,1721599320649,150.0,0.00024,64]
[332866546,1721599323258,150.0,0.00024,65]
[332866547,1721599323799,150.0,0.00024,65]
[332866548,1721599324341,150.0,0.00024,65]
[332866549,1721599328258,150.0,0.00024,70]
[332866550,1721599329245,150.0,0.00024,70]
[332866551,1721599332292,150.0,0.00024,71]
[332866552,1721599332523,150.0,0.00024,71]
[332866553,1721599333461,150.0,0.00024,71]
[332866554,1721599335953,150.0,0.00024,72]
[332866555,1721599336447,150.0,0.00024,72]
[332866556,1721599337044,150.0,0.00024,72]
[332866557,1721599338223,150.0,0.00024,70]
[332866558,1721599369696,150.0,0.00024,78]
[332866559,1721599369833,150.0,0.00024,78]
[332866560,1721599370298,150.0,0.00024,78]
[332866561,1721599373275,150.0,0.00024,79]
[332866562,1721599373776,150.0,0.00024,79]
[332866563,1721599374272,150.0,0.00024,79]
[332866564,1721599379189,150.0,0.00024,80]
[332866565,1721599379277,150.0,0.00024,80]
[332866566,1721599379481,150.0,0.00024,80]
[332866567,1721599388647,150.0,0.00025,119]
[332866568,1721599392279,150.0,0.00025,118]
[332866569,1721599393713,500.0,0.00025,110]
[332866570,1721599394190,150.0,0.00025,117]
[332866571,1721599396957,150.0,0.00025,116]
[332866572,1721599399961,150.0,0.00025,115]
[332866573,1721599404153,150.0,0.00025,114]
[332866574,1721599406165,150.0,0.00025,113]
[332866575,1721599408951,150.0,0.00025,112]
[332866576,1721599411898,150.0,0.00025,111]
[332866577,1721599416009,150.0,0.00025,110]
[332866578,1721599463495,868.5,8.479e-05,2]
[332866579,1721599479018,150.0,0.00024,60]
[332866585,1721599480137,150.0,0.00024,60]
[332866586,1721599480568,150.0,0.00024,60]
[332866587,1721599481019,150.0,0.00024,60]
[332866589,1721599481427,150.0,0.00024,60]
[332866590,1721599481894,150.0,0.00024,60]
[332866591,1721599482354,150.0,0.00024,60]
[332866592,1721599482799,150.0,0.00024,60]
[332866593,1721599483257,150.0,0.00024,60]
[332866594,1721599483801,150.0,0.00024,60]
[332866595,1721599487899,150.0,0.00024,61]
[332866596,1721599487987,150.0,0.00024,61]
[332866597,1721599488056,150.0,0.00024,61]
[332866598,1721599488366,150.0,0.00024,61]
[332866599,1721599488828,150.0,0.00024,61]
[332866600,1721599489289,150.0,0.00024,61]
[332866601,1721599489781,150.0,0.00024,61]
[332866602,1721599490235,150.0,0.00024,61]
[332866603,1721599490681,150.0,0.00024,61]
[332866604,1721599491185,150.0,0.00024,61]
[332866605,1721599494102,150.0,0.00024,62]
[332866606,1721599494577,150.0,0.00024,62]
[332866607,1721599495027,150.0,0.00024,62]
[332866608,1721599495496,150.0,0.00024,62]
[332866609,1721599495936,150.0,0.00024,62]
[332866610,1721599496393,150.0,0.00024,62]
[332866611,1721599496867,150.0,0.00024,62]
[332866612,1721599497352,150.0,0.00024,62]
[332866613,1721599499406,150.0,0.00024,62]
[332866614,1721599499467,150.0,0.00024,62]
[332866615,1721599507303,150.0,0.00024,66]
[332866616,1721599507762,150.0,0.00024,66]
[332866617,1721599508205,150.0,0.00024,66]
[332866618,1721599508607,150.0,0.00024,66]
[332866619,1721599509027,150.0,0.00024,66]
[332866623,1721599511171,150.0,0.00024,66]
[332866624,1721599511208,150.0,0.00024,66]
[332866625,1721599511257,150.0,0.00024,66]
[332866626,1721599511305,150.0,0.00024,66]
[332866627,1721599511354,150.0,0.00024,66]
[332866628,1721599514728,150.0,0.00024,67]
[332866629,1721599515168,150.0,0.00024,67]
[332866630,1721599515656,150.0,0.00024,67]
[332866631,1721599518436,150.0,0.00024,67]
[332866632,1721599519289,150.0,0.00024,67]
[332866633,1721599519348,150.0,0.00024,67]
[332866634,1721599520256,150.0,0.00024,67]
[332866635,1721599520739,150.0,0.00024,67]
[332866636,1721599522479,150.0,0.00024,67]
[332866637,1721599522747,150.0,0.00024,67]
[332866642,1721599536533,150.0,0.00024,68]
[332866643,1721599537031,150.0,0.00024,68]
[332866644,1721599537475,150.0,0.00024,68]
[332866645,1721599538246,150.0,0.00024,68]
[332866646,1721599538382,150.0,0.00024,68]
[332866647,1721599538866,150.0,0.00024,68]
[332866648,1721599539288,150.0,0.00024,68]
[332866649,1721599539772,150.0,0.00024,68]
[332866650,1721599540254,150.0,0.00024,68]
[332866651,1721599540729,150.0,0.00024,68]
[332866652,1721599545458,150.0,0.00024,69]
[332866653,1721599546036,150.0,0.00024,69]
[332866654,1721599546106,150.0,0.00024,69]
[332866655,1721599546151,150.0,0.00024,69]
[332866658,1721599546620,150.0,0.00024,69]
[332866659,1721599547159,150.0,0.00024,69]
[332866660,1721599547776,150.0,0.00024,69]
[332866661,1721599549312,150.0,0.00024,69]
[332866662,1721599549403,150.0,0.00024,69]
[332866663,1721599563838,150.072207,0.00024,60]
[332866664,1721599566499,150.072207,0.00024,61]
[332866665,1721599569053,150.072207,0.00024,62]
[332866666,1721599571625,150.072207,0.00024,63]
[332866667,1721599586350,150.072207,0.00024,66]
[332866668,1721599589737,150.072207,0.00024,67]
[332866669,1721599593663,150.072207,0.00024,68]
[332866670,1721599598691,150.072207,0.00024,69]
[332866671,1721599617167,14799.38,0.00013,30]
[332866672,1721599617189,99055.87065172,0.00013,30]
[332866740,1721599832945,-500.0,0.00010185,2]
[332866741,1721599832955,-250.0,0.00010209,2]
[332866742,1721599832965,-481.37,0.00010229,2]
[332866743,1721599832975,-250.0,0.00010236,2]
[332866744,1721599832985,-56.49318183,0.00010252,2]
[332866745,1721599832997,-207.93681817,0.00010252,2]
[332866746,1721599833007,-268.36,0.00010262,2]
[332866747,1721599833021,-1464.82822912,0.00010284,2]
[332866748,1721599833045,-1110.38177088,0.00010284,2]
[332866749,1721599833054,-11845.85283906,0.00010415,2]
[332866750,1721599833065,-1317.25716094,0.00010415,2]
[332866751,1721599833075,-184.07,0.00010446,2]
[332866752,1721599833086,-200.0,0.00010446,2]
[332866753,1721599833098,-500.0,0.00010448,2]
[332866754,1721599833108,-500.0,0.00010449,2]
[332866755,1721599833118,-500.0,0.00010449,2]
[332866756,1721599833128,-165.12,0.00010508,2]
[332866757,1721599833138,-1000.0,0.00010618,2]
[332866758,1721599833149,-191.15632673,0.0001072,2]
[332866759,1721599833158,-868.5,0.00010743,2]
[332866760,1721599833169,-179.22,0.00010761,2]
[332866761,1721599833178,-200.0,0.000109,3]
[332866762,1721599833189,-150.0,0.00010931,2]
[332866763,1721599833199,-420.03,0.00010932,2]
[332866764,1721599833208,-833.39,0.00010932,2]
[332866765,1721599833218,-420.03,0.00010932,2]
[332866766,1721599833229,-833.39,0.00010932,2]
[332866767,1721599833238,-420.03,0.00010932,2]
[332866768,1721599833249,-833.39,0.00010932,2]
[332866770,1721599833259,-420.03,0.00010932,2]
[332866772,1721599833268,-586.3336722,0.00010932,2]
[332866774,1721599833279,-247.0563278,0.00010932,2]
[332866776,1721599833288,-420.03,0.00010932,2]
[332866777,1721599833298,-536.55208284,0.00010932,2]
[332866778,1721599833310,-296.83791716,0.00010932,2]
[332866779,1721599833320,-420.03,0.00010932,2]
[332866780,1721599833331,-985.65,0.00010932,2]
[332866781,1721599833343,-420.03,0.00010932,2]
[332866782,1721599833353,-392.17873782,0.00010932,2]
[332866785,1721599833366,-27.85126218,0.00010932,2]
[332866787,1721599833376,-415.57,0.00010932,2]
[332866789,1721599833386,-150.0,0.00010959,2]
[332866791,1721599833396,-500.0,0.00011,4]
[332866793,1721599833406,-800.0,0.000111,4]
[332866795,1721599833416,-363.67452282,0.00011105,2]
[332866796,1721599833426,-2454.68944154,0.00011105,2]
[332866798,1721599833436,-308.85879004,0.00011105,2]
[332866799,1721599833446,-155.0,0.00011105,2]
[332866800,1721599833457,-159.37746402,0.00011105,2]
[332866801,1721599833467,-155.0,0.00011105,2]
[332866802,1721599833477,-155.0,0.00011105,2]
[332866803,1721599833487,-1145.21008033,0.00011105,2]
[332866804,1721599833497,-155.0,0.00011105,2]
[332866805,1721599833507,-5399.47150965,0.00011105,2]
[332866806,1721599833517,-10000.0,0.00011176,2]
[332866807,1721599833527,-262.24,0.00011176,2]
[332866808,1721599833537,-150.0,0.00011176,2]
[332866809,1721599833546,-150.0,0.00011178,2]
[332866810,1721599833556,-300.0,0.00011178,2]
[332866811,1721599833566,-75.00617549,0.00011186,2]
[332866812,1721599833578,-493.5770007,0.00011186,2]
[332866813,1721599833592,-264.82796935,0.00011186,2]
[332866814,1721599833625,-472.04,0.00011186,2]
[332866815,1721599833636,-1625.57304693,0.00011186,2]
[332866816,1721599833648,-544.57707993,0.00011186,2]
[332866817,1721599833660,-418.54007673,0.00011186,2]
[332866818,1721599833672,-837.82808505,0.00011186,2]
[332866819,1721599833688,-250.0,0.00011186,2]
[332866820,1721599833700,-700.0,0.00011186,2]
[332866821,1721599833712,-2467.26092252,0.00011186,2]
[332866822,1721599833723,-795.57001,0.00011186,2]
[332866823,1721599833750,-811.05669613,0.00011186,2]
[332866824,1721599833762,-15533.23222004,0.00011186,2]
[332866825,1721599833772,-6618.11483938,0.00011186,2]
[332866826,1721599833782,-150.0,0.000112,2]
[332866827,1721599833792,-150.0,0.000112,2]
[332866828,1721599833802,-1100.0,0.000112,4]
[332866829,1721599833811,-9257.67538197,0.00011206,2]
[332866830,1721599833821,-150.0,0.000113,2]
[332866831,1721599833831,-1300.0,0.000113,4]
[332866832,1721599833844,-439.46122706,0.00011322,2]
[332866833,1721599833853,-300.0,0.00011342,2]
[332866834,1721599833863,-3399.71436587,0.00011384,2]
[332866835,1721599833872,-167.04694196,0.00011384,2]
[332866836,1721599833882,-200.0,0.000114,4]
[332866837,1721599833892,-2756.7848,0.00011445,2]
[332866838,1721599833901,-5135.406,0.00011453,2]
[332866839,1721599833911,-200.0,0.000115,4]
[332866840,1721599833921,-200.0,0.000116,4]
[332866841,1721599833931,-714.1314,0.000117,2]
[332866842,1721599833942,-17000.2652,0.000117,2]
[332866843,1721599833951,-1316.8068,0.000117,2]
[332866844,1721599833961,-2325.26918932,0.000117,2]
[332866845,1721599833973,-1180.39281068,0.000117,2]
[332866846,1721599833983,-200.0,0.000117,4]
[332866847,1721599833993,-158.02600734,0.000117,2]
[332866848,1721599834002,-150.0,0.00011738,2]
[332866849,1721599834018,-150.0,0.00011738,2]
[332866850,1721599834027,-150.0,0.00011738,2]
[332866851,1721599834037,-150.0,0.00011738,2]
[332866852,1721599834046,-295.447,0.00011738,2]
[332866853,1721599834058,-223.002,0.00011738,2]
[332866854,1721599834067,-1829.0,0.00011738,2]
[332866855,1721599834076,-1063.865,0.00011738,2]
[332866856,1721599834089,-308.1053381,0.00011767,2]
[332866857,1721599834100,-24044.33127478,0.000118,2]
[332866858,1721599834141,-3332.62267,0.000118,2]
[332866860,1721599838492,-1738.18071885,0.000118,2]
[332866861,1721599838505,-623.44199861,0.000118,2]
[332866862,1721599838546,-521.86556772,0.000118,2]
[332866863,1721599838558,-3396.04284698,0.000118,2]
[332866864,1721599838601,-68262.38134848,0.000118,2]
[332866914,1721599840460,-1953.79706891,0.000118,2]
[332866915,1721599840473,-13006.2972758,0.000118,2]
[332866916,1721599842888,-1216.15843688,0.000118,2]
[332866917,1721599842908,-6825.7120864,0.000118,2]
[332866918,1721599842927,-304.27923153,0.000118,2]
[332866919,1721599842946,-518.7823258,0.000118,2]
[332866920,1721599842966,-457.06658257,0.000118,2]
[332866921,1721599842983,-22691.78997225,0.000118,2]
[332866922,1721599843011,-6161.1919003,0.000118,2]
[332866923,1721599843103,-1819.20996264,0.000118,2]
[332866924,1721599843126,-4564.99427688,0.000118,2]
[332866925,1721599843145,-419.77238971,0.000118,2]
[332866928,1721599843164,-1656.58520388,0.000118,2]
[332866930,1721599843183,-9181.60895399,0.000118,2]
[332866959,1721599844004,-6246.50973598,0.000118,2]
[332866960,1721599844093,-688.56235155,0.000118,2]
[332866961,1721599844780,-1371.16970358,0.000118,2]
[332866962,1721599844800,-5549.95131536,0.000118,2]
[332866970,1721599846615,-887.47499999,0.000118,2]
[332866971,1721599846786,-3534.40000002,0.000118,2]
[332866973,1721599965344,236.0,0.00025,120]
[332866974,1721599992187,500.0,0.00024999,120]
[332866975,1721599996215,3000.0,0.00024999,120]
[332866976,1721599998305,500.0,0.00024999,120]
[332866977,1721600015249,821.88,8.918e-05,2]
[332866993,1721600605320,853.16,8.597e-05,2]
[332866994,1721600624883,165.22331655,8.918e-05,2]
[332866995,1721600646241,155.14462349,8.918e-05,2]
[332867018,1721600929460,151.072207,0.00024,60]
[332867019,1721600932120,151.072207,0.00024,60]
[332867020,1721600932176,151.072207,0.00024,60]
[332867021,1721600932206,151.072207,0.00024,60]
[332867022,1721600932550,151.072207,0.00024,60]
[332867023,1721600933066,151.072207,0.00024,60]
[332867024,1721600934222,151.072207,0.00024,60]
[332867025,1721600936092,151.072207,0.00024,60]
[332867026,1721600936343,151.072207,0.00024,60]
[332867027,1721600937074,151.072207,0.00024,60]
[332867028,1721600944756,151.072207,0.00024,61]
[332867029,1721600944812,151.072207,0.00024,61]
[332867030,1721600944857,151.072207,0.00024,61]
[332867031,1721600944905,151.072207,0.00024,61]
[332867032,1721600944948,151.072207,0.00024,61]
[332867033,1721600945124,151.072207,0.00024,61]
[332867034,1721600945652,151.072207,0.00024,61]
[332867035,1721600946186,151.072207,0.00024,61]
[332867036,1721600946853,151.072207,0.00024,61]
[332867037,1721600947312,151.072207,0.00024,61]
[332867038,1721600952307,151.072207,0.00024,62]
[332867039,1721600953017,151.072207,0.00024,62]
[332867040,1721600953586,151.072207,0.00024,62]
[332867041,1721600954124,151.072207,0.00024,62]
[332867042,1721600954668,151.072207,0.00024,62]
[332867043,1721600956505,151.072207,0.00024,62]
[332867044,1721600956584,151.072207,0.00024,62]
[332867045,1721600968493,151.072207,0.00024,63]
[332867046,1721600968548,151.072207,0.00024,63]
[332867047,1721600969491,151.072207,0.00024,63]
[332867049,1721600972892,151.072207,0.00024,64]
[332867050,1721600976439,151.072207,0.00024,65]
[332867051,1721600980837,151.072207,0.00024,66]
[332867052,1721600981244,151.072207,0.00024,66]
[332867053,1721600981700,151.072207,0.00024,66]
[332867054,1721600982247,151.072207,0.00024,66]
[332867055,1721600982743,151.072207,0.00024,66]
[332867056,1721600983210,151.072207,0.00024,66]
[332867057,1721600983650,151.072207,0.00024,66]
[332867058,1721600985156,190.21,8.282e-05,2]
[332867059,1721600986886,151.072207,0.00024,67]
[332867060,1721600987450,151.072207,0.00024,67]
[332867061,1721600987958,151.072207,0.00024,67]
[332867062,1721600988464,151.072207,0.00024,67]
[332867063,1721600988955,151.072207,0.00024,67]
[332867064,1721600989432,151.072207,0.00024,67]
[332867065,1721600989938,151.072207,0.00024,67]
[332867066,1721601025543,151.072207,0.00024,68]